[Event "Memorial Ukrainian Chess Warriors 2024"]
[Site "Lviv"]
[Date "2024.03.15"]
[Round "3.1"]
[White "Hnatyshyn, Anastasiya"]
[Black "Kravtsiv, Martyn"]
[Result "0-1"]
[ECO "C50"]
[WhiteElo "2017"]
[BlackElo "2598"]
[Annotator "TA"]
[PlyCount "70"]
[EventDate "2024.03.06"]
[EventType "swiss"]
[EventCountry "UKR"]
[SourceTitle "playchess.com"]
[Source "ChessBase"]
[SourceQuality "1"]
[TimeControl "600+5"]

{[%evp 13,70,44,48,-22,-22,-23,-29,-22,-19,-31,-34,-16,-43,-25,-33,-15,-24,-130,-125,-184,-147,-231,-240,-232,-208,-331,-235,-407,-412,-440,-424,-537,-254,-333,-293,-419,-270,-416,-285,-313,-272,-376,-336,-385,-397,-354,-288,-993,-956,-1082,-1041,-1088,-811,-908,-897,-1153,-1110,-1286,-1233]} 1. e4 {[%emt 0:00:02]} e5 {[%emt 0:00:01]} 2. Nf3 {[%emt 0:00:02]} Nc6 {[%emt 0:00:02]} 3. Bc4 {[%emt 0:00:05]} Nf6 {[%emt 0:00:07]} 4. d3 {[%emt 0:00:01]} Bc5 {[%emt 0:00:06]} 5. O-O {[%emt 0:00:06]} O-O {[%emt 0:00:05]} 6. c3 {[%emt 0:00:28]} d5 {[%emt 0:00:13]} 7. exd5 {[%emt 0:00:13]} Nxd5 {[%emt 0:00:03]} 8. d4 {[%emt 0:00:29]} (8. Re1 $14) 8... exd4 $11 {[%emt 0:00:39]} 9. cxd4 {[%emt 0:00:03]} Bb6 {[%emt 0:00:44]} 10. Nc3 {[%emt 0:00:55] Black has an edge.} Be6 {[%emt 0:04:37]} 11. Ng5 {[%emt 0:03:20]} Nxd4 {[%emt 0:01:03]} ({Reject} 11... Bxd4 12. Qc2 g6 13. Nxe6 fxe6 14. Bh6 $11) 12. Nxe6 {[%emt 0:03:49]} fxe6 {[%emt 0:00:05]} 13. Bxd5 {[%emt 0:01:02]} exd5 {[%emt 0:00:03]} 14. Be3 {[%emt 0:00:02]} c5 {[%emt 0:00:56]} 15. Qg4 {[%emt 0:00:31] White is on the road to losing.} (15. Bxd4 $11 {keeps the balance.} cxd4 16. Na4) 15... Nf5 $17 {[%emt 0:00:40]} 16. Bg5 {[%emt 0:00:07]} (16. b4 $17) 16... Qd6 {[%emt 0:00:28]} 17. Rad1 {[%emt 0:00:05] [#]} (17. Rae1 $17 {keeps fighting.}) 17... d4 $1 $19 {[%emt 0:00:05] ...Qg6 would now be deadly.} 18. Ne4 {[%emt 0:00:03]} Qg6 {[%emt 0:00:08]} 19. Qh3 {[%emt 0:00:10]} (19. Qe2 $142) 19... Rae8 {[%emt 0:00:32]} 20. f3 {[%emt 0:00:03]} (20. Qb3+ Kh8 21. f3) 20... h6 {[%emt 0:00:41]} 21. Bc1 {[%emt 0:00:06]} c4 {[%emt 0:00:07] [#] And now ...Ne3 would win.} 22. Kh1 {[%emt 0:00:05]} Rd8 {[%emt 0:00:14]} (22... Ne3 $142 23. Bxe3 dxe3) 23. Rfe1 {[%emt 0:00:05]} Ba5 {[%emt 0:00:02]} 24. Rf1 {[%emt 0:00:05]} (24. Rg1 {was necessary.}) 24... b5 {[%emt 0:00:02] Strongly threatening ...Ne3.} 25. Bf4 {[%emt 0:00:06]} (25. g4 $142 Ne3 26. Bxe3 dxe3 27. Rxd8 Rxd8 28. Qg2) 25... Bb6 {[%emt 0:00:05]} 26. Rfe1 {[%emt 0:00:03]} a6 {[%emt 0:00:06]} ({Don't do} 26... d3 27. Bd2 $19) 27. a3 {[%emt 0:00:04]} d3 {[%emt 0:00:06]} 28. Rf1 {[%emt 0:00:08]} Bd4 {[%emt 0:00:02]} 29. Rb1 {[%emt 0:00:03]} Ne7 {[%emt 0:00:09]} 30. Bd6 {[%emt 0:00:04]} (30. Bc7) 30... Rxd6 {[%emt 0:00:07] Black is clearly winning.} 31. Nxd6 {[%emt 0:00:02] White is weak on the dark squares} Qxd6 {[%emt 0:00:02]} 32. Qg4 {[%emt 0:00:10]} Bf6 {[%emt 0:00:02]} 33. Qe4 {[%emt 0:00:06]} Qd5 {[%emt 0:00:04] aiming for ...Qxe4.} 34. Qg4 {[%emt 0:00:04]} Rd8 {[%emt 0:00:02] White must now prevent ...d2.} 35. Rfd1 {[%emt 0:00:04]} Nf5 {[%emt 0:00:03] Weighted Error Value: White=0.96/Black=0.52.  Mistake:       	White=8     	Black=1      Inaccurate:     	White=2     	Black=2      OK:         	White=5     	Black=9      Best:        	White=1     	Black=2} 0-1

[Event "Memorial Ukrainian Chess Warriors 2024"]
[Site "Lviv"]
[Date "2024.03.15"]
[Round "3.2"]
[White "Pavlov, Sergey"]
[Black "Karvatskyi, Oleksii"]
[Result "1-0"]
[ECO "A30"]
[WhiteElo "2451"]
[BlackElo "1986"]
[Annotator "TA"]
[PlyCount "51"]
[EventDate "2024.03.06"]
[EventType "swiss"]
[EventCountry "UKR"]
[SourceTitle "playchess.com"]
[Source "ChessBase"]
[SourceQuality "1"]
[TimeControl "600+5"]

{[%evp 9,51,29,26,20,35,18,36,26,25,28,40,29,24,33,25,24,23,12,21,14,31,-3,59,7,72,77,111,122,113,110,288,282,267,277,281,272,767,739,1929,1885,1800,1633,1572,1459]} 1. c4 c5 2. Nf3 {[%cal Bg1f3,Bf3d4,Bd4b5,Bb5a3][%mdl 32]} Nc6 3. d4 cxd4 4. Nxd4 e5 5. Nb5 d6 6. N1c3 {Strongly threatening Nd5.} a6 7. Na3 f5 8. g3 {White is slightly better.} Nf6 9. Bg2 Be6 10. Nd5 Be7 11. O-O O-O 12. Be3 Rc8 13. Rc1 Kh8 14. Qb3 Rb8 15. Rfd1 e4 (15... Qd7 $11) 16. Bf4 (16. Nc2 $14) 16... Bxd5 (16... Nh5 $1 $11 {remains equal.}) 17. cxd5 $16 Na5 18. Qc3 $36 {[%mdl 2048] White has strong initiative.} b5 {[%cal Bb7b5,Bb5b4][%mdl 32] Threatens to win with ...b4.} 19. b4 {[%cal Bb2b4,Bb4a5][%mdl 32] White has more active pieces.} Nd7 $2 {This costs Black the game.} 20. bxa5 $18 b4 {[#]} 21. Qc6 {[%csl LRa6,LRd6]} bxa3 22. Bxd6 ({Much less strong is} 22. Qxa6 $6 Nc5 23. Qc6 (23. Rxc5 Ra8 $16) 23... Rc8 $16) 22... Rf6 $2 (22... Bxd6 23. Qxd6 Rb2) 23. Bxb8 {A strong pair of Bishops. White is clearly winning.} Rxc6 24. dxc6 Qxb8 25. cxd7 {Intending Rc8+ and mate.} Qf8 {[#]} 26. d8=Q $1 {Weighted Error Value: White=0.09 (flawless) /Black=0.31.  Loses game:     	---       	Black=1      Mistake:       	White=1     	Black=3      Inaccurate:     	White=1     	Black=2      OK:         	White=9     	Black=6      Best:        	White=3     	Black=1} 1-0

[Event "Memorial Ukrainian Chess Warriors 2024"]
[Site "Lviv"]
[Date "2024.03.15"]
[Round "3.3"]
[White "Grinev, Valeriy"]
[Black "Vinogradnik, Vladimir"]
[Result "1-0"]
[ECO "A40"]
[WhiteElo "2422"]
[BlackElo "2036"]
[Annotator "TA"]
[PlyCount "51"]
[EventDate "2024.03.06"]
[EventType "swiss"]
[EventCountry "UKR"]
[SourceTitle "playchess.com"]
[Source "ChessBase"]
[SourceQuality "1"]
[TimeControl "600+5"]

{[%evp 9,51,78,92,53,64,43,43,9,22,35,40,50,40,33,44,25,71,62,68,69,66,8,36,32,14,0,8,0,0,-15,0,-88,324,337,327,309,316,315,310,319,791,775,760,772]} 1. d4 {[%emt 0:00:02]} e5 {[%emt 0:00:04]} 2. dxe5 {[%emt 0:00:05]} d6 {[%emt 0:00:02]} 3. exd6 {[%emt 0:00:09]} Bxd6 {[%emt 0:00:02]} 4. e4 {[%emt 0:00:12]} Qe7 {[%emt 0:00:14]} 5. Nc3 {[%emt 0:00:04]} Nf6 {[%emt 0:00:02]} 6. Bg5 {[%emt 0:00:34]} h6 {[%emt 0:00:12]} 7. Bh4 {[%emt 0:00:02]} Nc6 {[%emt 0:00:03]} 8. Bb5 {[%emt 0:00:19] Weiß steht etwas besser.} Bd7 {[%emt 0:00:16]} 9. Nge2 {[%emt 0:00:49] Droht Nd5 und aus.} g5 {[%emt 0:00:08]} 10. Bg3 {[%emt 0:00:02]} Bxg3 {[%emt 0:00:11]} 11. Nxg3 {[%emt 0:00:07]} O-O-O {[%emt 0:00:04][%cal Od7h3] Weiss muss nun ...Bh3! beachten.} 12. O-O {[%emt 0:01:04]} Bg4 {[%emt 0:00:45]} (12... Be6 $11 {scheint genauer.} 13. Qc1 Nd4) 13. Qe1 $16 {[%emt 0:01:28]} Nd4 {[%emt 0:00:55]} 14. Bd3 {[%emt 0:00:04]} h5 {[%emt 0:00:20][%cal Bh6h5,Bh5h4,Bh4h3][%mdl 32]} 15. Qe3 {[%emt 0:02:25]} (15. f3 $14 Be6 16. Qf2) 15... h4 $11 {[%emt 0:00:43]} 16. Nge2 {[%emt 0:00:02]} h3 {[%emt 0:00:50] Droht stark ...hxg2.} 17. Nxd4 {[%emt 0:00:44]} hxg2 {[%emt 0:00:03]} 18. Rfe1 {[%emt 0:00:22][%cal Oe4e5] Zielt auf e5! ab.} (18. Qxg5 $2 gxf1=Q+ (18... gxf1=B $2 19. Kxf1 Rxd4 20. h4 $19) 19. Kxf1 Rxd4 $19) 18... Qe5 $1 {[%emt 0:00:03][%csl LRd4,LRh2]} 19. Qg3 {[%emt 0:00:24]} Qxd4 {[%emt 0:00:40]} 20. e5 {[%emt 0:00:30]} (20. Be2 $11 Bxe2 (20... Nxe4 $2 21. Bxg4+ Kb8 22. Rxe4 $18) 21. Rxe2) 20... Rh3 $2 {[%emt 0:00:33][%mdl 8192] Danach kann Schwarz die Partie nicht mehr halten.} (20... Nh5 $17 {bleibt auf Kurs.} 21. Qxg2 Be6) 21. Qxg2 $18 {[%emt 0:00:03]} Rdh8 {[%emt 0:01:41] ...Rxh2 wäre nun fies.} 22. exf6 {[%emt 0:00:02]} (22. Re4 Nxe4 23. Qxg4+ Kb8 24. Qxe4 (24. Bxe4 Qxe5 25. Bg2 Rxh2 $16) 24... Qb6 $16) 22... Rxh2 {[%emt 0:00:03] [#]} 23. Re8+ $3 {[%emt 0:00:02][%mdl 512]} Rxe8 {[%emt 0:00:11]} 24. Qxh2 {[%emt 0:00:02]} ({Auf keinen Fall} 24. Kxh2 Bd7 (24... Rh8+ $2 25. Kg1 $18) 25. Be4 (25. Qxg5 {führt zum Matt.} Qxf2+ 26. Kh1 Rh8+) 25... c6) 24... Qxf6 $2 {[%emt 0:00:09] [#]} (24... a6 25. Qg3 Kb8) 25. Qxc7+ $3 {[%emt 0:00:03][%mdl 512]} Kxc7 {[%emt 0:00:04]} 26. Nd5+ {[%emt 0:00:01] Gewichteter Fehlerwert: Weiß=0.15 (sehr präzise) /Schwarz=0.39.  Verlustzug:     	---       	Schwarz=1     Fehler:       	Weiß=2     	Schwarz=2     Ungenau:       	Weiß=1     	---        OK:         	Weiß=7     	Schwarz=9     Bester:       	Weiß=1     	Schwarz=3     Brilliant:      	Weiß=2     	---} 1-0

[Event "Memorial Ukrainian Chess Warriors 2024"]
[Site "Lviv"]
[Date "2024.03.15"]
[Round "3.4"]
[White "Shevchenko, Yaroslav"]
[Black "Kislinsky, Alexey"]
[Result "0-1"]
[ECO "E92"]
[WhiteElo "1971"]
[BlackElo "2361"]
[Annotator "TA"]
[PlyCount "92"]
[EventDate "2024.03.06"]
[EventType "swiss"]
[EventCountry "UKR"]
[SourceTitle "playchess.com"]
[Source "ChessBase"]
[SourceQuality "1"]
[TimeControl "600+5"]

{[%evp 19,92,32,36,30,48,49,54,52,49,40,46,44,56,10,16,-13,0,-10,-7,-8,13,0,43,32,47,38,130,114,172,176,178,107,86,70,69,83,77,83,124,101,123,120,136,137,137,130,164,136,178,166,166,139,279,273,343,270,263,135,132,0,0,0,0,-3,0,-133,8,8,8,8,300,143,134,-29998,-29999]} 1. d4 {[%emt 0:00:05]} Nf6 {[%emt 0:00:02]} 2. c4 {[%emt 0:00:01]} g6 {[%emt 0:00:07]} 3. Nc3 {[%emt 0:00:06]} Bg7 {[%emt 0:00:02]} 4. e4 {[%emt 0:00:02]} d6 {[%emt 0:00:04]} 5. Nf3 {[%emt 0:00:02]} O-O {[%emt 0:00:03]} 6. Be2 {[%emt 0:00:02]} e5 {[%emt 0:00:23]} 7. d5 {[%emt 0:00:02]} a5 {[%emt 0:00:03]} 8. Be3 {[%emt 0:00:19]} Ng4 {[%emt 0:00:12][%cal Bf6g4,Bg4h6,Bh6f5][%mdl 32]} 9. Bg5 {[%emt 0:00:02]} f6 {[%emt 0:00:11]} 10. Bh4 {[%emt 0:00:01]} Nh6 {[%emt 0:00:16]} 11. Nd2 {[%emt 0:00:05]} g5 {[%emt 0:00:30]} 12. Bg3 {[%emt 0:00:03]} f5 {[%emt 0:00:03]} 13. exf5 {[%emt 0:00:46] White is slightly better.} Nxf5 {[%emt 0:00:05]} 14. Bg4 {[%emt 0:00:02]} Na6 {[%emt 0:00:18]} 15. Nde4 {[%emt 0:00:18]} b6 {[%emt 0:00:13]} 16. Bxf5 {[%emt 0:00:56]} (16. O-O $14) 16... Bxf5 $11 {[%emt 0:00:04]} 17. O-O {[%emt 0:00:42]} g4 {[%emt 0:01:32]} 18. f3 {[%emt 0:01:25]} gxf3 {[%emt 0:00:25]} 19. Rxf3 {[%emt 0:00:11]} Qe8 {[%emt 0:00:36]} 20. Bh4 {[%emt 0:03:09]} Kh8 {[%emt 0:00:51]} 21. Qe2 {[%emt 0:00:18]} Bg6 {[%emt 0:02:09]} 22. Raf1 {[%emt 0:00:26]} Rf4 {[%emt 0:01:08]} 23. Nf6 $16 {[%emt 0:01:23]} (23. Rxf4 exf4 24. Rxf4 Nc5 $18) 23... Bxf6 {[%emt 0:00:53]} (23... Qf7 $16 24. Bg5 (24. Rxf4 exf4 25. Rxf4 Nc5 $16) 24... Nc5 (24... Bxf6 $2 25. Bxf4 Qe8 26. Bh6 $18)) 24. Bxf6+ $18 (24. Rxf4 Bg7 25. R4f2 Nc5) 24... Kg8 25. Rxf4 {[%emt 0:00:23]} (25. Bg5 $18 Bh5 26. Bxf4 Bxf3 27. Qxf3 exf4 28. Qxf4) 25... exf4 $16 {[%emt 0:00:02]} 26. Qxe8+ {[%emt 0:00:02]} Rxe8 {[%emt 0:00:01]} 27. Rxf4 {[%emt 0:00:01]} Nc5 {[%emt 0:00:06]} 28. b3 {[%emt 0:00:28]} Nd3 {[%emt 0:00:52]} 29. Rf1 {[%emt 0:00:07]} h5 {[%emt 0:00:14]} 30. Bd4 {[%emt 0:00:28]} Kh7 {[%emt 0:00:10]} 31. h3 {[%emt 0:00:06]} Nb4 {[%emt 0:00:22]} 32. Rf2 {[%emt 0:00:31]} Nc2 {[%emt 0:00:08]} 33. Bf6 {[%emt 0:00:04]} Re1+ {[%emt 0:00:22]} 34. Kh2 {[%emt 0:00:01]} Ne3 {[%emt 0:00:05]} 35. Re2 {[%emt 0:00:13]} Nf1+ {[%emt 0:00:19]} (35... Rxe2 $16 {might work better.} 36. Nxe2 a4) 36. Kg1 $18 {[%emt 0:00:01]} Rc1 {[%emt 0:00:05]} 37. Kf2 {[%emt 0:00:06] Prevents Ng3} Bd3 {[%emt 0:00:03]} 38. Re1 {[%emt 0:00:05]} ({White should play} 38. Re7+ $18 Kg6 39. Bd4) 38... Rc2+ $16 {[%emt 0:00:01]} 39. Kg1 {[%emt 0:00:09]} (39. Kf3 $16) 39... Kg6 $11 {[%emt 0:00:05]} 40. Bd4 {[%emt 0:00:02]} (40. Rxf1 $2 {too greedy.} Bxf1 41. Bh4 Bxc4 (41... Rxg2+ 42. Kxf1 Rc2 43. Nb5 $16) (41... Bxg2 $2 42. Nb5 $19) 42. bxc4 Rxc3 $19) 40... Ng3 {[%emt 0:00:04]} 41. Nb5 {[%emt 0:00:06]} Ne2+ {[%emt 0:00:01]} 42. Kh1 {[%emt 0:00:06]} (42. Kh2 $11) 42... Be4 {[%emt 0:00:08]} (42... Rxa2 $17 {Strongly threatening ...a4.} 43. Bg1 a4 44. bxa4 Ng3+ (44... Bxc4 45. Nxc7 Ng3+ 46. Kh2 $11) 45. Kh2 h4 46. Re6+ Kf7) 43. Bf2 {[%emt 0:00:06]} Rxa2 {[%emt 0:00:06]} 44. Nxc7 {[%emt 0:00:05][%cal Oc7b5] Hoping for Nb5!} Kf5 $2 {[%emt 0:00:04][%mdl 8192]} (44... Nc3 $11 45. Kg1 Ne2+ 46. Kf1 Bd3) 45. Ne8 {[%emt 0:00:02]} (45. Bxb6 $2 {leads to mate.} Ng3+ 46. Kh2 Rxg2#) (45. Nb5 $1 $18 {[%cal Rb5d6]} Ke5 46. Kh2 (46. Bxb6 $2 Ng3+ 47. Kh2 Rxg2#)) 45... Ke5 $16 {[%emt 0:00:02]} 46. Bxb6 $2 {[%emt 0:00:08][%mdl 8192] [#]} (46. Bh4 $16) 46... Ng3+ {[%emt 0:00:04] Weighted Error Value: White=0.43/Black=0.47.  Loses game:     	White=1     	Black=1      Mistake:       	White=6     	Black=4      Inaccurate:     	White=1     	Black=3      OK:         	White=7     	Black=12     Best:        	White=4     	Black=3} 0-1

[Event "Memorial Ukrainian Chess Warriors 2024"]
[Site "Lviv"]
[Date "2024.03.15"]
[Round "3.5"]
[White "Kazakov, Maksym"]
[Black "Petrov, Vladimir Sergeev"]
[Result "0-1"]
[ECO "A10"]
[WhiteElo "1992"]
[BlackElo "2349"]
[Annotator "RC"]
[PlyCount "142"]
[EventDate "2024.03.06"]
[EventType "swiss"]
[EventCountry "UKR"]
[SourceTitle "playchess.com"]
[Source "ChessBase"]
[SourceQuality "1"]
[TimeControl "600+5"]

1. c4 {[%emt 0:00:01]} g6 {[%emt 0:00:02]} 2. g3 {[%emt 0:00:03]} Bg7 {[%emt 0:00:01]} 3. Bg2 {[%emt 0:00:01]} d6 {[%emt 0:00:03]} 4. Nc3 {[%emt 0:00:01]} Nf6 {[%emt 0:00:05]} 5. e3 {[%emt 0:00:02]} O-O {[%emt 0:00:02]} 6. Nge2 {[%emt 0:00:01]} c6 {[%emt 0:00:04]} 7. O-O {[%emt 0:00:03]} Bf5 {[%emt 0:00:07]} 8. d4 {[%emt 0:00:43]} Qc8 {[%emt 0:00:02]} 9. e4 {[%emt 0:00:07]} Bh3 {[%emt 0:00:03]} 10. Bxh3 {[%emt 0:00:02]} Qxh3 {[%emt 0:00:02]} 11. Nf4 {[%emt 0:00:01]} Qc8 {[%emt 0:00:14]} 12. e5 {[%emt 0:00:15]} Ne8 {[%emt 0:00:11]} 13. Re1 {[%emt 0:00:31]} Nc7 {[%emt 0:00:08]} 14. exd6 {[%emt 0:00:27]} exd6 {[%emt 0:00:01]} 15. d5 {[%emt 0:00:04]} c5 {[%emt 0:00:02]} 16. Ne4 {[%emt 0:00:10]} Qd8 {[%emt 0:00:03]} 17. a4 {[%emt 0:00:34]} Nba6 {[%emt 0:00:14]} 18. Nd3 {[%emt 0:00:49]} h6 {[%emt 0:00:36]} 19. Bd2 {[%emt 0:00:58]} Ne8 {[%emt 0:00:13]} 20. Bc3 {[%emt 0:00:08]} Nf6 {[%emt 0:00:08]} 21. Bxf6 {[%emt 0:00:45]} Bxf6 {[%emt 0:00:02]} 22. Qf3 {[%emt 0:00:03]} Bg7 {[%emt 0:00:46]} 23. Qf4 {[%emt 0:00:35]} f5 {[%emt 0:00:06]} 24. Nc3 {[%emt 0:00:20]} g5 {[%emt 0:00:08]} 25. Qe3 {[%emt 0:00:12]} Nc7 {[%emt 0:00:02]} 26. Qe7 {[%emt 0:00:09]} Rf7 {[%emt 0:00:14]} 27. Qxd8+ {[%emt 0:00:07]} Rxd8 {[%emt 0:00:01]} 28. Nb5 {[%emt 0:00:07]} a6 {[%emt 0:00:20]} 29. Nxc7 {[%emt 0:00:02]} Rxc7 {[%emt 0:00:01]} 30. Re6 {[%emt 0:00:06]} Kf7 {[%emt 0:00:08]} 31. Kg2 {[%emt 0:00:28]} Re7 {[%emt 0:00:49]} 32. Rxe7+ {[%emt 0:00:12]} Kxe7 {[%emt 0:00:01]} 33. Re1+ {[%emt 0:00:01]} Kf7 {[%emt 0:01:58]} 34. Re6 {[%emt 0:00:02]} Bf8 {[%emt 0:00:10]} 35. f3 {[%emt 0:00:47]} b5 {[%emt 0:00:09]} 36. axb5 {[%emt 0:01:15]} axb5 {[%emt 0:00:01]} 37. b3 {[%emt 0:00:00]} Ra8 {[%emt 0:00:26]} 38. cxb5 {[%emt 0:00:20]} Rb8 {[%emt 0:00:25]} 39. Nb2 {[%emt 0:00:05]} Rxb5 {[%emt 0:00:22]} 40. Nc4 {[%emt 0:00:00]} Rxb3 {[%emt 0:00:19]} 41. Nxd6+ {[%emt 0:00:02]} Bxd6 {[%emt 0:00:11]} 42. Rxd6 {[%emt 0:00:01]} Rd3 {[%emt 0:00:13]} 43. h4 {[%emt 0:00:16]} g4 {[%emt 0:00:20]} 44. fxg4 fxg4 {[%emt 0:00:01]} 45. Rxh6 {[%emt 0:00:46]} Rxd5 {[%emt 0:01:10]} 46. Rc6 {[%emt 0:00:02]} Rd2+ {[%emt 0:00:02]} 47. Kf1 {[%emt 0:00:01]} Rc2 {[%emt 0:00:01]} 48. Ke1 {[%emt 0:00:21]} c4 {[%emt 0:00:14]} 49. h5 {[%emt 0:01:02]} Rc3 {[%emt 0:00:08]} 50. Kf2 {[%emt 0:00:25]} Rf3+ {[%emt 0:00:07]} 51. Ke2 {[%emt 0:00:13]} c3 {[%emt 0:00:08]} 52. Rc4 {[%emt 0:00:18]} Rxg3 {[%emt 0:00:01]} 53. Kf2 {[%emt 0:00:01]} Rh3 {[%emt 0:00:22]} 54. Rxg4 {[%emt 0:00:10]} c2 {[%emt 0:00:02]} 55. Rc4 {[%emt 0:00:02]} Rh1 {[%emt 0:00:01]} 56. Rc7+ {[%emt 0:00:21]} Kg8 {[%emt 0:00:06]} 57. h6 {[%emt 0:00:06]} c1=Q {[%emt 0:00:05]} 58. h7+ {[%emt 0:00:02]} Kh8 {[%emt 0:00:01]} 59. Rxc1 {[%emt 0:00:08]} Rxc1 {[%emt 0:00:03]} 60. Ke2 {[%emt 0:00:03]} Ra1 {[%emt 0:00:02]} 61. Kd2 {[%emt 0:00:01]} Kxh7 {[%emt 0:00:01]} 62. Kc2 {[%emt 0:00:01]} Rh1 {[%emt 0:00:02]} 63. Kd2 {[%emt 0:00:00]} Kg6 {[%emt 0:00:01]} 64. Ke2 {[%emt 0:00:01]} Kf5 {[%emt 0:00:01]} 65. Kf2 {[%emt 0:00:01]} Kf4 {[%emt 0:00:02]} 66. Kg2 {[%emt 0:00:00]} Rb1 {[%emt 0:00:02]} 67. Kf2 {[%emt 0:00:02]} Rb2+ {[%emt 0:00:01]} 68. Ke1 {[%emt 0:00:01]} Ke3 {[%emt 0:00:02]} 69. Kd1 {[%emt 0:00:00]} Kd3 {[%emt 0:00:01]} 70. Kc1 {[%emt 0:00:01]} Rb3 {[%emt 0:00:01]} 71. Kd1 {[%emt 0:00:02]} Rb1# {[%emt 0:00:01]} 0-1

[Event "Memorial Ukrainian Chess Warriors 2024"]
[Site "Lviv"]
[Date "2024.03.15"]
[Round "3.6"]
[White "Sakun, Volodymyr"]
[Black "Kotovskyy, Dmytro"]
[Result "1-0"]
[ECO "D04"]
[WhiteElo "2301"]
[BlackElo "2024"]
[Annotator "RC"]
[PlyCount "81"]
[EventDate "2024.03.06"]
[EventType "swiss"]
[EventCountry "UKR"]
[SourceTitle "playchess.com"]
[Source "ChessBase"]
[SourceQuality "1"]
[TimeControl "600+5"]

1. Nf3 {[%emt 0:00:02]} d5 {[%emt 0:00:10]} 2. d4 {[%emt 0:00:02]} Nf6 {[%emt 0:00:11]} 3. e3 {[%emt 0:00:04]} c5 {[%emt 0:00:17]} 4. c3 {[%emt 0:00:20]} Nc6 {[%emt 0:00:30]} 5. dxc5 {[%emt 0:00:09]} e5 {[%emt 0:00:05]} 6. Bb5 {[%emt 0:00:06]} Qc7 {[%emt 0:00:30]} 7. b4 {[%emt 0:00:09]} a6 {[%emt 0:00:21]} 8. Be2 {[%emt 0:01:33]} Bg4 {[%emt 0:00:35]} 9. h3 {[%emt 0:00:28]} Bh5 {[%emt 0:00:08]} 10. Nbd2 {[%emt 0:00:28]} Be7 {[%emt 0:00:52]} 11. O-O {[%emt 0:00:05]} O-O {[%emt 0:00:02]} 12. Bb2 {[%emt 0:00:04]} Rad8 {[%emt 0:01:15]} 13. Rc1 {[%emt 0:00:19]} Ne4 {[%emt 0:00:22]} 14. Nh2 {[%emt 0:01:48]} Bg6 {[%emt 0:01:04]} 15. Nxe4 {[%emt 0:00:19]} dxe4 {[%emt 0:00:02]} 16. Qc2 {[%emt 0:00:56]} f5 {[%emt 0:00:06]} 17. Rcd1 {[%emt 0:00:04]} f4 {[%emt 0:00:13]} 18. Bc4+ {[%emt 0:00:09]} Kh8 {[%emt 0:00:05]} 19. Bd5 {[%emt 0:00:16]} f3 {[%emt 0:01:05]} 20. Bxe4 {[%emt 0:00:06]} fxg2 {[%emt 0:00:08]} 21. Kxg2 {[%emt 0:00:05]} Rxd1 {[%emt 0:00:35]} 22. Rxd1 {[%emt 0:00:10]} Bh5 {[%emt 0:00:37]} 23. Ng4 {[%emt 0:00:24]} Bh4 {[%emt 0:00:08]} 24. Rf1 {[%emt 0:00:43]} Qe7 {[%emt 0:00:54]} 25. f4 {[%emt 0:00:58]} Re8 {[%emt 0:00:40]} 26. f5 {[%emt 0:00:18]} Qg5 {[%emt 0:00:08]} 27. Qe2 {[%emt 0:00:03]} Rd8 {[%emt 0:00:40]} 28. Kh1 {[%emt 0:00:11]} Bg3 {[%emt 0:00:10]} 29. Rg1 {[%emt 0:00:16]} Qh4 {[%emt 0:00:08]} 30. Qg2 {[%emt 0:00:09]} Bxg4 {[%emt 0:00:23]} 31. Qxg3 {[%emt 0:00:02]} Qxg3 {[%emt 0:00:04]} 32. Rxg3 {[%emt 0:00:02]} Rd1+ {[%emt 0:00:04]} 33. Kh2 {[%emt 0:00:22]} Bh5 {[%emt 0:00:09]} 34. Rg1 {[%emt 0:00:08]} Rd2+ {[%emt 0:00:06]} 35. Rg2 {[%emt 0:00:02]} Rd1 {[%emt 0:00:04]} 36. a3 {[%emt 0:00:07]} h6 {[%emt 0:00:02]} 37. c4 Bf7 {[%emt 0:00:07]} 38. Rc2 {[%emt 0:00:55]} Kg8 {[%emt 0:00:07]} 39. b5 {[%emt 0:00:13]} Na5 {[%emt 0:00:04]} 40. c6 {[%emt 0:00:06]} Nxc4 {[%emt 0:00:06]} 41. cxb7 {[%emt 0:00:03]} 1-0